bitfinex-derivatives/quotes_BTCF0:USTF0_20250320
["timestamp","ask_amount","ask_price","bid_price","bid_amount"]
[1742475277093,0.6294503,85320.0,85319.0,0.0806]
[1742475277295,0.4972503,85320.0,85319.0,0.0806]
[1742475277493,0.5401503,85320.0,85319.0,0.0806]
[1742475277802,0.7150291,85320.0,85319.0,0.0806]
[1742475283006,0.8062291,85320.0,85319.0,0.0806]
[1742475285007,0.6313503,85320.0,85319.0,0.0806]
[1742475287803,0.5685503,85320.0,85319.0,0.0806]
[1742475288009,0.5901503,85320.0,85319.0,0.0806]
[1742475288200,0.5401503,85320.0,85319.0,0.0806]
[1742475290099,0.4972503,85320.0,85319.0,0.0806]
[1742475290509,0.4344503,85320.0,85319.0,0.0806]
[1742475290714,0.4972503,85320.0,85319.0,0.0806]
[1742475290909,0.3972503,85320.0,85319.0,0.0806]
[1742475291111,0.4972503,85320.0,85319.0,0.0806]
[1742475292515,0.5391503,85320.0,85319.0,0.0806]
[1742475293611,0.3972503,85320.0,85319.0,0.0806]
[1742475293814,0.4972503,85320.0,85319.0,0.0806]
[1742475294605,0.3972503,85320.0,85319.0,0.0806]
[1742475294805,0.4972503,85320.0,85319.0,0.0806]
[1742475295617,0.5403503,85320.0,85319.0,0.0806]
[1742475296713,0.3972503,85320.0,85319.0,0.0806]
[1742475297108,0.4972503,85320.0,85319.0,0.0806]
[1742475297613,0.3972503,85320.0,85319.0,0.0806]
[1742475298319,0.3972503,85320.0,85319.0,0.1978517]
[1742475298815,0.3972503,85320.0,85319.0,0.0806]
[1742475304228,0.3972503,85320.0,85319.0,0.1978517]
[1742475305726,0.3972503,85320.0,85319.0,0.0806]
[1742475305935,0.4392503,85320.0,85319.0,0.0806]
[1742475306624,0.4392503,85320.0,85319.0,0.1978517]
[1742475307133,0.3972503,85320.0,85319.0,0.1978517]
[1742475309835,0.3972503,85320.0,85319.0,0.0806]
[1742475310239,0.4402503,85320.0,85319.0,0.0806]
[1742475311335,0.2591991,85323.0,85319.0,0.0806]
[1742475311534,0.5191991,85323.0,85320.0,0.0407]
[1742475311736,0.1172489,85321.0,85320.0,0.0407]
[1742475311941,0.3772489,85321.0,85320.0,0.0831]
[1742475314530,0.4193489,85321.0,85320.0,0.0831]
[1742475318740,0.3772489,85321.0,85320.0,0.0831]
[1742475318939,0.3772489,85321.0,85320.0,0.2003503]
[1742475322237,0.4193489,85321.0,85320.0,0.2003503]
[1742475322434,0.4193489,85321.0,85320.0,0.0831]
[1742475322435,0.5193489,85321.0,85320.0,0.0831]
[1742475322744,0.5193489,85321.0,85320.0,0.2003503]
[1742475324945,0.4193489,85321.0,85320.0,0.2003503]
[1742475328047,0.8996489,85321.0,85320.0,0.0831]
[1742475328237,0.8314489,85321.0,85320.0,0.0424]
[1742475328440,0.1172544,85317.0,85316.0,0.00017576]
[1742475328747,0.4672544,85317.0,85316.0,0.00017576]
[1742475328948,0.5021544,85317.0,85316.0,0.00017576]
[1742475329348,0.5703544,85317.0,85316.0,0.00017576]
[1742475329534,0.5021544,85317.0,85316.0,0.00017576]
[1742475329739,0.4703544,85317.0,85316.0,0.11743156]
[1742475330138,0.4703544,85317.0,85316.0,0.15803156]
[1742475331252,0.4272544,85317.0,85316.0,0.15803156]
[1742475331643,0.4272544,85317.0,85316.0,0.19843156]
[1742475333851,0.3672544,85317.0,85316.0,0.19843156]
[1742475334740,0.4468544,85317.0,85316.0,0.19843156]
[1742475335153,0.4468544,85317.0,85316.0,0.08117576]
[1742475336153,0.4468544,85317.0,85316.0,0.12007576]
[1742475342063,0.4468544,85317.0,85316.0,0.23733156]
[1742475343460,0.4077544,85317.0,85316.0,0.23733156]
[1742475344950,0.4505544,85317.0,85316.0,0.23733156]
[1742475345346,0.4505544,85317.0,85316.0,0.12007576]
[1742475346061,0.5505544,85317.0,85316.0,0.08117576]
[1742475346255,0.4823544,85317.0,85316.0,0.08117576]
[1742475346453,0.5505544,85317.0,85316.0,0.08117576]
[1742475346651,0.4823544,85317.0,85316.0,0.08117576]
[1742475346957,0.4505544,85317.0,85316.0,0.19843156]
[1742475348344,0.4877544,85317.0,85316.0,0.08117576]
[1742475349861,0.5505544,85317.0,85316.0,0.08117576]
[1742475350850,0.4877544,85317.0,85316.0,0.19843156]
[1742475351252,0.4505544,85317.0,85316.0,0.19843156]
[1742475351457,0.0586265,85318.0,85316.0,0.19843156]
[1742475351458,0.21005059,85326.0,85325.0,0.1172434]
[1742475351652,0.24005059,85326.0,85325.0,0.1172434]
[1742475351961,0.1172421,85326.0,85325.0,0.2931078]
[1742475352554,0.00068,85349.0,85328.0,0.0586189]
[1742475352866,0.5857737,85390.0,85328.0,0.0586189]
[1742475352867,0.01298762,85353.0,85346.0,0.0586068]
[1742475353049,0.1772061,85353.0,85352.0,0.117205]
[1742475353656,0.06,85353.0,85352.0,0.591765]
[1742475353866,0.23887369,85356.0,85355.0,0.1172022]
[1742475354158,0.23887369,85356.0,85355.0,0.3572022]
[1742475354551,0.17397369,85356.0,85355.0,0.3572022]
[1742475354951,0.1171954,85360.0,85359.0,0.1171967]
[1742475355153,0.11737036,85361.0,85360.0,0.1171954]
[1742475355359,0.11737036,85361.0,85360.0,0.1563954]
[1742475356463,0.12237036,85361.0,85360.0,0.1563954]
[1742475356759,0.12737036,85361.0,85360.0,0.1563954]
[1742475357664,0.12737036,85361.0,85360.0,0.1978954]
[1742475358861,0.12737036,85361.0,85360.0,0.20681577]
[1742475359457,0.12737036,85361.0,85360.0,0.1978954]
[1742475360061,0.20587036,85361.0,85360.0,0.1978954]
[1742475364059,0.16687036,85361.0,85360.0,0.1978954]
[1742475364266,0.01017576,85361.0,85360.0,0.1978954]
[1742475365358,0.01017576,85361.0,85360.0,0.4678954]
[1742475367570,0.12736976,85361.0,85360.0,0.4678954]
[1742475370561,0.12736976,85361.0,85360.0,0.1978954]
[1742475372577,0.01017576,85361.0,85360.0,0.1978954]
[1742475376681,6e-08,85361.0,85360.0,0.49242361]
[1742475377373,6e-08,85361.0,85360.0,1.99242361]
[1742475378372,0.00500006,85361.0,85360.0,1.99242361]
[1742475379066,0.01,85361.0,85360.0,1.9778954]
[1742475380682,1e-07,85361.0,85360.0,1.9778954]
[1742475381382,0.00017576,85369.0,85360.0,1.9778954]
[1742475381383,0.00017576,85369.0,85368.0,0.1171844]
[1742475381580,0.00017576,85369.0,85368.0,0.8521444]
[1742475381770,0.00017576,85369.0,85368.0,0.9748444]
[1742475382470,0.13010953,85392.0,85391.0,0.1171528]
[1742475382675,0.14010953,85392.0,85391.0,0.2313528]
[1742475382981,0.1271527,85392.0,85391.0,0.2313528]
[1742475384271,0.2107527,85392.0,85391.0,0.2313528]
[1742475384678,0.2137527,85392.0,85391.0,0.2313528]
[1742475385692,0.2197527,85392.0,85391.0,0.2313528]
[1742475386788,0.0926,85392.0,85391.0,0.2313528]
[1742475387577,0.2097514,85392.0,85391.0,0.2313528]
[1742475390083,0.2197514,85392.0,85391.0,0.2313528]
[1742475391380,0.1026,85392.0,85391.0,0.2313528]
[1742475391579,0.2197514,85392.0,85391.0,0.2313528]
[1742475391786,0.2197514,85392.0,85391.0,0.3098528]
[1742475392990,0.2197514,85392.0,85391.0,0.2313528]
[1742475394185,0.1026,85392.0,85391.0,0.2313528]
[1742475394388,0.2197514,85392.0,85391.0,0.3124528]
[1742475394781,0.2197514,85392.0,85391.0,0.2720528]
[1742475395091,0.2197514,85392.0,85391.0,0.2313528]
[1742475395790,0.1026,85392.0,85391.0,0.2313528]
[1742475395989,0.1026,85392.0,85391.0,0.2717528]
[1742475396587,0.2197514,85392.0,85391.0,0.2717528]
[1742475397479,0.2197514,85392.0,85391.0,0.2313528]
[1742475397994,0.2197514,85392.0,85391.0,0.2705528]
[1742475398290,0.2197514,85392.0,85391.0,0.3105528]
[1742475399388,0.1026,85392.0,85391.0,0.3105528]
[1742475399689,0.1001144,85400.0,85399.0,0.1171418]
[1742475399988,0.0236814,85400.0,85399.0,0.8719818]
[1742475400182,0.0236814,85400.0,85399.0,2.4560818]
[1742475401692,0.0256814,85400.0,85399.0,2.4560818]
[1742475402279,0.0246814,85400.0,85399.0,2.4560818]
[1742475402486,0.0256814,85400.0,85399.0,2.4560818]
[1742475403890,0.0256814,85400.0,85399.0,2.80659302]
[1742475404390,0.0256814,85400.0,85399.0,1.30659302]
[1742475404697,0.07158052,85408.0,85407.0,0.1171309]
[1742475404996,0.07158052,85408.0,85407.0,0.5920109]
[1742475405585,0.07158052,85408.0,85407.0,0.68057613]
[1742475405981,0.07358052,85408.0,85407.0,0.68057613]
[1742475409589,0.002,85408.0,85407.0,0.94057613]
[1742475411499,0.0419,85408.0,85407.0,0.94057613]
[1742475411798,0.085,85408.0,85407.0,0.94057613]
[1742475413497,0.08723988,85408.0,85407.0,0.94057613]
[1742475413800,0.08723988,85408.0,85407.0,0.94077613]
[1742475417303,0.08723988,85408.0,85407.0,0.68077613]
[1742475417602,0.085,85408.0,85407.0,0.68077613]
[1742475417896,0.085,85408.0,85407.0,0.68057613]
[1742475418202,0.08723988,85408.0,85407.0,0.68057613]
[1742475418603,0.08723988,85408.0,85407.0,0.68077613]
[1742475420700,0.20436938,85408.0,85407.0,0.48699613]
[1742475421101,0.12993988,85408.0,85407.0,0.48699613]
[1742475421402,0.12993988,85408.0,85407.0,0.56999613]
[1742475422701,0.2448295,85408.0,85407.0,0.56999613]
[1742475422901,0.2448295,85408.0,85407.0,0.48699613]
[1742475423101,0.2448295,85408.0,85407.0,0.4781309]
[1742475423509,0.2448295,85408.0,85407.0,0.4779309]
[1742475423807,0.24706938,85408.0,85407.0,0.4779309]
[1742475424099,0.24706938,85408.0,85407.0,0.4781309]
[1742475424506,0.24706938,85408.0,85407.0,0.361]
[1742475424805,0.25706938,85408.0,85407.0,0.361]
[1742475425001,0.25706938,85408.0,85406.0,0.0586061]
[1742475425002,0.1171391,85401.0,85392.0,0.35051122]
[1742475425203,0.2271391,85401.0,85400.0,0.08004466]
[1742475425407,0.1271391,85401.0,85400.0,0.08004466]
[1742475425706,0.1703391,85401.0,85400.0,0.19718516]
[1742475427209,0.2703391,85401.0,85400.0,0.19718516]
[1742475427799,0.2703391,85401.0,85400.0,0.1171405]
[1742475428496,0.3097391,85401.0,85400.0,0.1171405]
[1742475430897,0.1171418,85399.0,85398.0,0.0398]
[1742475431211,0.1371418,85399.0,85398.0,0.0786]
[1742475431410,0.1371418,85399.0,85398.0,0.1957432]
[1742475432510,0.2371418,85399.0,85398.0,0.1957432]
[1742475433602,0.1371418,85399.0,85398.0,0.1957432]
[1742475434307,0.1371418,85399.0,85398.0,0.3097432]
[1742475436011,0.2168418,85399.0,85398.0,0.3097432]
[1742475436810,0.1767418,85399.0,85398.0,0.3097432]
[1742475438120,0.2186418,85399.0,85398.0,0.3097432]
[1742475441915,0.1767418,85399.0,85398.0,0.3097432]
[1742475443922,0.1767418,85399.0,85398.0,0.1569432]
[1742475444107,0.2203418,85399.0,85398.0,0.2708232]
[1742475444312,0.2203418,85399.0,85398.0,0.3123232]
[1742475444523,0.1767418,85399.0,85398.0,0.3123232]
[1742475444919,0.02,85399.0,85398.0,0.3123232]
[1742475445417,0.00012,85409.0,85405.0,0.1171336]
[1742475445626,0.01004,85407.0,85406.0,0.2711722]
[1742475445817,0.01,85407.0,85406.0,0.3112722]
[1742475446329,0.01,85407.0,85406.0,0.3236342]
[1742475446724,0.01,85407.0,85406.0,0.3112722]
[1742475446912,0.0506,85407.0,85406.0,0.3112722]
[1742475447313,0.01,85407.0,85406.0,0.3112722]
[1742475447621,0.00223988,85408.0,85407.0,0.1171309]
[1742475447815,0.00223988,85408.0,85407.0,0.4405309]
[1742475448121,0.00223988,85408.0,85407.0,0.5208309]
[1742475450618,0.00223988,85408.0,85407.0,0.2408309]
[1742475450824,0.00223988,85408.0,85407.0,0.3545109]
[1742475452226,0.11936938,85408.0,85407.0,0.2709109]
[1742475452624,0.23846938,85408.0,85407.0,0.2709109]
[1742475452925,0.24846938,85408.0,85407.0,0.2709109]
[1742475453328,0.24846938,85408.0,85407.0,0.0401]
[1742475453329,0.34846938,85408.0,85407.0,0.0401]
[1742475454620,0.1757039,85405.0,85404.0,0.1171336]
[1742475454827,0.2275039,85405.0,85404.0,0.1171336]
[1742475455029,0.2957039,85405.0,85404.0,0.1171336]
[1742475455429,0.2275039,85405.0,85404.0,0.1171336]
[1742475455628,0.1957039,85405.0,85404.0,0.1171336]
[1742475456226,0.20849243,85405.0,85404.0,0.1171336]
[1742475456429,0.20849243,85405.0,85404.0,0.1583336]
[1742475458734,0.24029243,85405.0,85404.0,0.1583336]
[1742475458938,0.20849243,85405.0,85404.0,0.1583336]
[1742475461040,0.24029243,85405.0,85404.0,0.0412]
[1742475461537,0.20849243,85405.0,85404.0,0.158335]
[1742475461739,0.30849243,85405.0,85404.0,0.0412]
[1742475462141,0.24029243,85405.0,85404.0,0.0412]
[1742475462437,0.1171364,85403.0,85402.0,0.1596372]
[1742475462742,0.1171514,85392.0,85391.0,0.3608]
[1742475463044,0.2371514,85392.0,85391.0,0.3608]
[1742475463633,0.3205514,85392.0,85391.0,0.3608]
[1742475464737,0.1171528,85391.0,85390.0,4e-05]
[1742475465038,0.1171528,85391.0,85388.0,0.28005769]
[1742475465039,0.1171556,85389.0,85388.0,0.28005769]
[1742475465239,0.1371556,85389.0,85388.0,0.28005769]
[1742475465640,0.1371556,85389.0,85387.0,0.1171578]
[1742475465641,0.1171569,85388.0,85387.0,0.1171578]
[1742475465841,0.1795569,85388.0,85387.0,0.1171578]
[1742475466042,0.2205569,85388.0,85387.0,0.1171578]
[1742475466437,0.3205569,85388.0,85387.0,0.1171578]
[1742475466638,0.2301611,85388.0,85387.0,0.1171578]
[1742475466845,0.2301611,85388.0,85387.0,0.1588578]
[1742475468748,0.3301611,85388.0,85387.0,0.1588578]
[1742475468952,0.3301611,85388.0,85387.0,0.0417]
[1742475469443,0.3301611,85388.0,85387.0,0.1588583]
[1742475469646,0.2301611,85388.0,85387.0,0.1588583]
[1742475469851,0.3301611,85388.0,85387.0,0.1588583]
[1742475472955,0.3301611,85388.0,85387.0,0.0417]
[1742475476357,0.1171624,85384.0,85383.0,0.00017565]
[1742475476560,0.1467666,85384.0,85383.0,0.03997565]
[1742475477145,0.2333666,85384.0,85383.0,0.03997565]
[1742475477349,0.23347035,85384.0,85383.0,0.03997565]
[1742475477547,0.23347035,85384.0,85383.0,0.15713945]
[1742475477747,0.18997035,85384.0,85383.0,0.15713945]
[1742475479352,0.18997035,85384.0,85383.0,0.03997565]
[1742475479552,0.18989708,85384.0,85383.0,0.03997565]
[1742475481648,0.1802624,85384.0,85383.0,0.03997565]
[1742475481844,0.1802624,85384.0,85383.0,0.15713945]
[1742475486252,0.1802624,85384.0,85383.0,0.19743945]
[1742475496070,0.2238624,85384.0,85383.0,0.19743945]
[1742475502369,0.1802624,85384.0,85383.0,0.19743945]
[1742475502578,0.1602624,85384.0,85383.0,0.19743945]
[1742475510066,0.2041624,85384.0,85383.0,0.19743945]
[1742475510468,0.2359624,85384.0,85383.0,0.04047565]
[1742475510672,0.2915624,85384.0,85383.0,0.15763945]
[1742475511282,0.2915624,85384.0,85369.0,0.11344]
[1742475511283,0.1171707,85378.0,85369.0,0.11344]
[1742475511575,0.2371707,85378.0,85370.0,0.0434]
[1742475511973,0.3281707,85378.0,85370.0,0.0434]
[1742475512283,0.3281707,85378.0,85375.0,4e-05]
[1742475513076,0.3281707,85378.0,85377.0,0.28105769]
[1742475513380,0.2853707,85378.0,85377.0,0.28105769]
[1742475513573,0.2853707,85378.0,85377.0,0.39922969]
[1742475513574,0.2452707,85378.0,85377.0,0.39922969]
[1742475513774,0.3281707,85378.0,85377.0,0.002]
[1742475514282,0.2281707,85378.0,85377.0,0.0955]
[1742475514484,0.34076359,85378.0,85377.0,0.0955]
[1742475514973,0.34076359,85378.0,85377.0,0.212672]
[1742475515970,0.3281707,85378.0,85377.0,0.212672]
[1742475516174,0.2281707,85378.0,85377.0,0.212672]
[1742475516684,0.3281707,85378.0,85377.0,0.212672]
[1742475518184,0.34040287,85378.0,85377.0,0.212672]
[1742475518780,0.2281707,85378.0,85377.0,0.212672]
[1742475519085,0.3281707,85378.0,85377.0,0.212672]
[1742475519595,0.3281707,85378.0,85377.0,0.0955]
[1742475520786,0.34077885,85378.0,85377.0,0.0955]
[1742475521983,0.35040549,85378.0,85377.0,0.0494]
[1742475522778,0.35040549,85378.0,85370.0,0.0441]
[1742475522779,0.1171803,85371.0,85370.0,0.1171816]
[1742475522987,0.12680694,85371.0,85370.0,0.1639816]
[1742475523377,0.21450694,85371.0,85370.0,0.2067816]
[1742475523579,0.22450694,85371.0,85370.0,0.2067816]
[1742475524082,0.22450694,85371.0,85370.0,0.2097816]
[1742475524282,0.22450694,85371.0,85370.0,0.2127816]
[1742475525984,0.18070694,85371.0,85370.0,0.2127816]
[1742475526687,0.22780694,85371.0,85370.0,0.2127816]
[1742475527779,0.22780694,85371.0,85370.0,0.0956]
[1742475529482,0.18070694,85371.0,85370.0,0.2127816]
[1742475530085,0.18070694,85371.0,85370.0,0.0956]
[1742475530379,0.22720694,85371.0,85370.0,0.0956]
[1742475531784,0.2175803,85371.0,85370.0,0.0956]
[1742475531984,0.2175803,85371.0,85370.0,0.2127816]
[1742475534091,0.1710803,85371.0,85370.0,0.2127816]
[1742475534481,0.1271803,85371.0,85370.0,0.2127816]
[1742475534681,0.1171803,85371.0,85370.0,0.2127816]
[1742475535190,0.4193823,85384.0,85377.0,0.0585854]
[1742475535381,0.1171642,85383.0,85382.0,0.1171638]
[1742475535576,0.1271642,85383.0,85382.0,0.1171638]
[1742475535778,0.13680499,85383.0,85382.0,0.1171638]
[1742475537381,0.13680499,85383.0,85382.0,0.12987665]
[1742475537685,0.01964079,85383.0,85382.0,0.12987665]
[1742475537882,0.01964079,85383.0,85382.0,0.24331665]
[1742475538078,0.00964079,85383.0,85382.0,0.24331665]
[1742475538284,0.1171619,85385.0,85384.0,0.1171624]
[1742475538491,0.12679331,85385.0,85384.0,0.4779624]
[1742475538688,0.00741576,85385.0,85384.0,0.4779624]
[1742475538883,0.00017565,85386.0,85385.0,0.1171611]
[1742475539794,0.00017565,85386.0,85385.0,0.3771611]
[1742475540888,0.00217565,85386.0,85385.0,0.3771611]
[1742475541090,0.00217565,85386.0,85385.0,0.4906011]
[1742475546091,0.00217565,85386.0,85385.0,0.2306011]
[1742475548701,0.00217565,85386.0,85385.0,0.2305611]
[1742475549103,0.00217565,85386.0,85385.0,0.2775611]
[1742475551312,0.04917565,85386.0,85385.0,0.2775611]
[1742475551899,0.04917565,85386.0,85385.0,0.1641611]
[1742475552205,0.04917565,85386.0,85385.0,0.2775611]
[1742475553710,0.04917565,85386.0,85385.0,0.3228611]
[1742475554409,0.22303535,85386.0,85385.0,0.1624611]
[1742475555199,0.22303535,85386.0,85385.0,0.1171611]
[1742475555600,0.1171611,85385.0,85384.0,4e-05]
[1742475555816,0.1838611,85385.0,85384.0,0.1639024]
[1742475556014,0.2742611,85385.0,85384.0,0.1639024]
[1742475557912,0.2275611,85385.0,85384.0,0.1639024]
[1742475558718,0.2275611,85385.0,85384.0,0.2090024]
[1742475570217,0.1816611,85385.0,85384.0,0.2090024]
[1742475570730,0.1616611,85385.0,85384.0,0.2090024]
[1742475580530,0.1616611,85385.0,85384.0,0.41911527]
[1742475581927,0.00017565,85386.0,85385.0,0.1171611]
[1742475582125,0.00017565,85386.0,85385.0,0.4692611]
[1742475582328,0.00017565,85386.0,85385.0,0.8300611]
[1742475582530,0.11410684,85408.0,85399.0,0.1171418]
[1742475582531,0.0585702,85400.0,85399.0,0.1171418]
[1742475582739,0.0685702,85400.0,85399.0,0.2758418]
[1742475583037,0.0685702,85400.0,85399.0,0.3224418]
[1742475583741,0.0685702,85400.0,85399.0,0.3346323]
[1742475584033,0.0705702,85400.0,85399.0,0.2212323]
[1742475584339,0.0705702,85400.0,85399.0,0.3346323]
[1742475585831,0.0705702,85400.0,85399.0,0.3791323]
[1742475586430,0.1181702,85400.0,85399.0,0.3669418]
[1742475587531,0.1181702,85400.0,85399.0,0.2750418]
[1742475587732,0.2630702,85400.0,85399.0,0.1616418]
[1742475587929,0.2730702,85400.0,85399.0,0.1616418]
[1742475588431,0.1730702,85400.0,85399.0,0.1616418]
[1742475588633,0.1730702,85400.0,85399.0,0.1171418]
[1742475588832,0.2730702,85400.0,85399.0,0.1171418]
[1742475589033,0.1171418,85399.0,85398.0,4e-05]
[1742475589335,0.1834418,85399.0,85398.0,4e-05]
[1742475589534,0.2707418,85399.0,85398.0,4e-05]
[1742475589734,0.2707418,85399.0,85396.0,0.2105325]
[1742475589735,0.1171446,85397.0,85396.0,0.2105325]
[1742475589931,0.4979446,85397.0,85396.0,0.2105325]
[1742475590131,0.1171473,85395.0,85394.0,0.0478]
[1742475590333,0.2271473,85395.0,85394.0,0.0478]
[1742475590542,0.3144473,85395.0,85394.0,0.0478]
[1742475592035,0.3144473,85395.0,85394.0,0.1649487]
[1742475592237,0.2144473,85395.0,85394.0,0.1649487]
[1742475592433,0.2144473,85395.0,85394.0,0.0478]
[1742475592639,0.2144473,85395.0,85393.0,4e-05]
[1742475592640,0.1171487,85394.0,85393.0,4e-05]
[1742475592833,0.1171514,85392.0,85391.0,0.11732845]
[1742475593143,0.1371514,85392.0,85391.0,0.25142845]
[1742475593539,0.2289514,85392.0,85391.0,0.25142845]
[1742475594447,0.2299514,85392.0,85391.0,0.25142845]
[1742475595143,0.2309514,85392.0,85391.0,0.25142845]
[1742475595343,0.1869514,85392.0,85391.0,0.25142845]
[1742475597741,0.2869514,85392.0,85391.0,0.13427565]
[1742475597936,0.3305514,85392.0,85391.0,0.13427565]
[1742475599249,0.2305514,85392.0,85391.0,0.13427565]
[1742475599545,0.34044083,85392.0,85391.0,0.13427565]
[1742475600132,0.34044083,85392.0,85391.0,0.25142845]
[1742475600335,0.24044083,85392.0,85391.0,0.25142845]
[1742475601143,0.27224083,85392.0,85391.0,0.04637565]
[1742475601347,0.34044083,85392.0,85391.0,0.04637565]
[1742475601549,0.34044083,85392.0,85391.0,0.00017565]
[1742475602634,0.34060956,85392.0,85391.0,0.00017565]
[1742475602946,0.39060956,85392.0,85391.0,0.00017565]
[1742475604454,0.1171569,85388.0,85387.0,0.1171577]
[1742475604752,0.21359711,85388.0,85387.0,0.1171577]
[1742475604942,0.1171597,85386.0,85385.0,0.4193798]
[1742475605246,0.16359991,85386.0,85385.0,0.4193798]
[1742475605449,0.14732901,85386.0,85385.0,0.4193798]
[1742475606257,0.19392901,85386.0,85385.0,0.4193798]
[1742475606754,0.19492901,85386.0,85385.0,0.3608]
[1742475607054,0.24212901,85386.0,85385.0,0.3608]
[1742475607550,0.25842599,85386.0,85385.0,0.3608]
[1742475608346,0.25842599,85386.0,85377.0,0.11734705]
[1742475608347,0.1171707,85378.0,85377.0,5e-08]
[1742475608557,0.73804001,85378.0,85377.0,5e-08]
[1742475608856,0.34784001,85378.0,85377.0,5e-08]
[1742475609048,0.19734001,85378.0,85377.0,5e-08]
[1742475609246,0.14734001,85378.0,85377.0,5e-08]
[1742475609542,0.16364857,85378.0,85377.0,0.00100005]
[1742475609760,0.20644857,85378.0,85377.0,0.00100005]
[1742475609970,0.20644857,85378.0,85377.0,0.00200005]
[1742475610870,0.30644857,85378.0,85377.0,0.00200005]
[1742475611259,0.20644857,85378.0,85377.0,0.00200005]
[1742475611774,0.19014001,85378.0,85377.0,0.00200005]
[1742475612172,0.19008471,85378.0,85377.0,0.00200005]
[1742475612674,0.19008471,85378.0,85377.0,0.11917205]
[1742475612872,0.17584083,85390.0,85389.0,0.1171556]
[1742475613173,0.03284082,85390.0,85389.0,1.1821556]
[1742475613970,0.14999502,85390.0,85389.0,1.19449469]
[1742475614173,0.15099502,85390.0,85389.0,0.8213556]
[1742475614879,0.15299502,85390.0,85389.0,0.8213556]
[1742475615667,0.15299502,85390.0,85389.0,1.0318881]
[1742475615668,0.1201542,85390.0,85389.0,1.0318881]
[1742475615877,0.003,85390.0,85389.0,1.0318881]
[1742475616571,0.1201542,85390.0,85389.0,1.0318881]
[1742475618368,0.003,85390.0,85389.0,1.0318881]
[1742475618779,0.003,85390.0,85389.0,0.8213556]
[1742475619276,0.003,85390.0,85389.0,0.8685556]
[1742475623378,0.003,85390.0,85389.0,0.8685956]
[1742475623583,0.1201542,85390.0,85389.0,0.1643556]
[1742475623881,0.1201542,85390.0,85389.0,0.2777556]
[1742475624079,0.003,85390.0,85389.0,0.2777556]
[1742475624280,0.0503,85390.0,85389.0,0.2777556]
[1742475624979,0.1773341,85390.0,85389.0,0.2777556]
[1742475626172,0.1773341,85390.0,85389.0,0.2305556]
[1742475626574,0.1773341,85390.0,85389.0,0.1171556]
[1742475626777,0.1171556,85389.0,85388.0,4e-05]
[1742475626975,0.2942355,85389.0,85388.0,4e-05]
[1742475627185,0.3405355,85389.0,85388.0,4e-05]
[1742475627478,0.2405355,85389.0,85388.0,4e-05]
[1742475627671,0.3405355,85389.0,85388.0,0.1171569]
[1742475627987,0.3425355,85389.0,85388.0,0.1171569]
[1742475628286,0.3425355,85389.0,85388.0,0.2060569]
[1742475628973,0.3425355,85389.0,85388.0,0.1607569]
[1742475629173,0.1171569,85388.0,85387.0,4e-05]
[1742475629374,0.1470368,85388.0,85387.0,0.1171983]
[1742475629570,0.2403047,85388.0,85387.0,0.1171983]
[1742475630685,0.2423047,85388.0,85387.0,0.1171983]
[1742475631070,0.3402047,85388.0,85387.0,0.1171983]
[1742475631274,0.3402047,85388.0,85387.0,0.2086983]
[1742475631677,0.3402047,85388.0,85387.0,0.09154]
[1742475631678,0.2741047,85388.0,85387.0,0.09154]
[1742475631873,0.3423047,85388.0,85387.0,4e-05]
[1742475632385,0.1171707,85378.0,85374.0,0.1171754]
[1742475632587,0.2369185,85378.0,85375.0,0.1171739]
[1742475632776,0.2369185,85378.0,85377.0,0.11717205]
[1742475632777,0.2271707,85378.0,85377.0,0.11717205]
[1742475633087,0.1271707,85378.0,85377.0,0.11717205]
[1742475633282,0.2179707,85378.0,85377.0,0.11717205]
[1742475633786,0.22756604,85378.0,85377.0,0.20867205]
[1742475633977,0.22756604,85378.0,85377.0,0.21067205]
[1742475634287,0.2179707,85378.0,85377.0,0.21067205]
[1742475635185,0.3179707,85378.0,85377.0,0.00200005]
[1742475642485,0.2179707,85378.0,85377.0,0.00200005]
[1742475642883,0.3179707,85378.0,85377.0,0.00200005]
[1742475643084,0.2497707,85378.0,85377.0,0.00200005]
[1742475643295,0.3179707,85378.0,85377.0,0.00200005]
[1742475643893,0.3679707,85378.0,85377.0,0.00200005]
[1742475644088,0.0585942,85365.0,85358.0,0.02056414]
[1742475644286,0.0585942,85365.0,85340.0,0.54348849]
[1742475644287,0.4779954,85360.0,85359.0,4e-05]
[1742475644484,0.5197954,85360.0,85359.0,4e-05]
[1742475644690,0.1171995,85357.0,85356.0,0.2105325]
[1742475644994,0.1171995,85357.0,85356.0,0.3277324]
[1742475644995,0.1271995,85357.0,85356.0,0.3277324]
[1742475645299,0.1211995,85357.0,85356.0,0.3277324]
[1742475645495,0.2211995,85357.0,85356.0,0.2105325]
[1742475645803,0.2211995,85357.0,85356.0,0.3277334]
[1742475645980,0.2099995,85357.0,85356.0,0.4163334]
[1742475646185,0.2099995,85357.0,85356.0,0.2058009]
[1742475646186,0.2039995,85357.0,85356.0,0.2058009]
[1742475646795,0.2039995,85357.0,85356.0,0.2118009]
[1742475647295,0.2049995,85357.0,85356.0,0.2168009]
[1742475647898,0.1061995,85357.0,85356.0,0.34222483]
[1742475648399,0.1061995,85357.0,85356.0,1.8302009]
[1742475648696,0.1061995,85357.0,85356.0,1.8252009]
[1742475649399,0.2079995,85357.0,85356.0,0.3192009]
[1742475650290,0.2089995,85357.0,85356.0,0.3192009]
[1742475650491,0.2069995,85357.0,85356.0,0.3192009]
[1742475650691,0.2089995,85357.0,85356.0,0.3192009]
[1742475651092,0.1646995,85357.0,85356.0,0.3192009]
[1742475651991,0.2076995,85357.0,85356.0,0.3192009]
[1742475653098,0.2076995,85357.0,85356.0,0.2058009]
[1742475653302,0.1976995,85357.0,85356.0,0.3192009]
[1742475653498,0.2076995,85357.0,85356.0,0.3192009]
[1742475654299,0.3076995,85357.0,85356.0,0.3192009]
[1742475654605,0.2394995,85357.0,85356.0,0.0886]
[1742475654801,0.3076995,85357.0,85356.0,0.0886]
[1742475655491,0.2394995,85357.0,85356.0,0.0886]
[1742475655689,0.3076995,85357.0,85356.0,0.0886]
[1742475655994,0.2394995,85357.0,85356.0,0.0886]
[1742475656298,0.1172009,85356.0,85355.0,4e-05]
[1742475656493,0.5298009,85356.0,85355.0,4e-05]
[1742475656694,0.6856009,85356.0,85355.0,4e-05]
[1742475657407,0.1172022,85355.0,85354.0,0.1633036]
[1742475657700,0.1372022,85355.0,85354.0,0.04614]
[1742475657904,0.2248022,85355.0,85354.0,0.04614]
[1742475658208,0.2248022,85355.0,85354.0,0.1633436]
[1742475658504,0.2248022,85355.0,85354.0,0.2100436]
[1742475658701,0.2248022,85355.0,85354.0,0.1172436]
[1742475659006,0.3248022,85355.0,85354.0,4e-05]
[1742475659704,0.117205,85353.0,85352.0,0.0915]
[1742475659910,0.127205,85353.0,85352.0,0.2087063]
[1742475660310,0.127205,85353.0,85352.0,0.0915]
[1742475660505,0.127205,85353.0,85352.0,0.2087063]
[1742475660909,0.128205,85353.0,85352.0,0.2087063]